bitfinex/quotes_ETHUSD_20250623
["timestamp","ask_amount","ask_price","bid_price","bid_amount"]
[1750641511781,23.03554308,2237.4,2237.3,0.0599]
[1750641511998,23.51561003,2237.4,2237.3,0.0599]
[1750641512202,23.51561802,2237.4,2237.3,0.0599]
[1750641512403,23.09734308,2237.4,2237.3,0.0599]
[1750641512814,23.51561008,2237.4,2237.3,0.0599]
[1750641513526,23.51561008,2237.4,2237.3,10.52330179]
[1750641513527,0.8,2237.4,2237.3,10.52330179]
[1750641513733,0.8,2237.4,2237.3,11.31420179]
[1750641514026,0.8,2237.4,2237.3,12.09260179]
[1750641515042,0.8,2237.4,2237.3,12.64260179]
[1750641515390,0.8,2237.4,2237.3,14.35386718]
[1750641516206,0.8,2237.4,2237.3,13.80386718]
[1750641516490,0.8232,2237.7,2237.3,0.0599]
[1750641516721,0.885,2237.7,2237.3,0.0599]
[1750641517245,0.885,2237.7,2237.3,0.1172]
[1750641517246,9.336,2237.6,2237.3,0.1172]
[1750641517906,9.336,2237.6,2237.4,0.0573]
[1750641518112,9.336,2237.6,2237.3,0.90509523]
[1750641518323,9.336,2237.6,2237.4,0.0573]
[1750641518718,0.8,2237.4,2237.3,0.8604]
[1750641518918,0.8,2237.4,2237.3,2.17874648]
[1750641519123,0.8,2237.4,2237.3,1.32094648]
[1750641519345,0.8,2237.4,2237.3,0.0599]
[1750641521819,0.8618,2237.4,2237.3,0.0599]
[1750641523822,0.8,2237.4,2237.3,0.0599]
[1750641524210,2.004,2237.7,2237.3,0.0599]
[1750641524549,2.28784198,2239.7,2237.3,0.0599]
[1750641524550,2.004,2238.2,2237.8,0.0624]
[1750641524708,2.004,2238.2,2237.7,0.55]
[1750641524905,2.004,2238.2,2237.8,10.40610179]
[1750641525148,2.004,2238.2,2237.9,0.0624]
[1750641525533,2.004,2238.2,2237.9,1.405899]
[1750641525842,4.09205,2238.2,2237.9,1.343499]
[1750641526042,4.14835,2238.2,2237.6,0.8331]
[1750641526228,0.8116,2238.1,2237.6,2.176876]
[1750641526436,0.8679,2238.1,2237.6,2.176876]
[1750641526636,0.8679,2238.1,2237.6,1.343776]
[1750641526843,0.495995,2238.0,2237.6,1.343776]
[1750641527140,0.552295,2238.0,2237.6,1.343776]
[1750641527341,0.0563,2237.9,2237.6,1.343776]
[1750641527552,0.0563,2237.9,2237.3,0.1223]
[1750641527714,0.0563,2237.9,2237.5,0.8116]
[1750641528635,0.495995,2238.0,2237.5,0.8116]
[1750641528836,0.552295,2238.0,2237.5,0.874]
[1750641529419,0.0563,2237.9,2237.5,0.8116]
[1750641529639,7.326,2237.8,2237.5,0.8116]
[1750641529840,2.003,2237.7,2237.3,0.0599]
[1750641530038,2.003,2237.7,2237.4,1.406296]
[1750641530241,2.003,2237.7,2237.4,1.343896]
[1750641530421,0.8076,2237.6,2237.3,0.0599]
[1750641531245,0.8639,2237.6,2237.3,0.0599]
[1750641532056,0.8076,2237.6,2237.3,0.0599]
[1750641535848,0.8639,2237.6,2237.3,0.0599]
[1750641536451,0.8076,2237.6,2237.3,0.0599]
[1750641536649,0.8076,2237.6,2237.3,0.1223]
[1750641536856,0.8639,2237.6,2237.3,0.0599]
[1750641537019,0.0563,2237.5,2237.3,0.0599]
[1750641541164,1.82126,2237.6,2237.3,0.0599]
[1750641541332,11.82126,2237.6,2237.3,0.0599]
[1750641541533,1.6064,2237.4,2237.3,0.0599]
[1750641541763,1.9665206,2237.4,2237.3,0.0599]
[1750641541925,2.38468956,2237.4,2237.3,0.0599]
[1750641542530,1.9665206,2237.4,2237.3,0.0599]
[1750641542752,2.38469211,2237.4,2237.3,0.0599]
[1750641543062,2.384788,2237.4,2237.3,0.0599]
[1750641543365,2.38467411,2237.4,2237.3,0.0599]
[1750641543734,1.9665206,2237.4,2237.3,0.0599]
[1750641544062,2.38468297,2237.4,2237.3,0.0599]
[1750641544464,1.9665206,2237.4,2237.3,0.0599]
[1750641544663,2.38467458,2237.4,2237.3,0.0599]
[1750641545047,9.71067458,2237.4,2237.3,0.0599]
[1750641545865,9.7105878,2237.4,2237.3,0.0599]
[1750641546165,8.126,2237.4,2237.3,0.0599]
[1750641546375,8.1823,2237.4,2237.3,0.0599]
[1750641546585,19.35337453,2237.4,2237.3,0.0599]
[1750641547253,19.35343467,2237.4,2237.3,0.0599]
[1750641547877,19.35343445,2237.4,2237.3,0.0599]
[1750641548083,21.98434113,2237.4,2237.3,0.0599]
[1750641548388,21.98392865,2237.4,2237.3,0.0599]
[1750641549051,0.753,2236.9,2235.9,0.0624]
[1750641549253,21.24472197,2236.8,2235.9,0.0624]
[1750641549555,0.0563,2236.5,2235.8,0.7578]
[1750641549746,10.0563,2236.3,2235.8,0.7578]
[1750641549946,10.14777041,2236.2,2235.7,0.0624]
[1750641550474,10.20407041,2236.2,2235.7,0.0624]
[1750641551579,10.20407041,2236.2,2235.6,0.7578]
[1750641551878,10.20407041,2236.2,2235.4,0.8112]
[1750641551879,0.8236,2236.0,2235.4,0.8112]
[1750641552179,0.552295,2235.9,2235.2,0.8736]
[1750641552382,7.326,2235.8,2235.2,0.8736]
[1750641552687,2.001,2235.7,2235.2,0.8736]
[1750641553682,0.8236,2235.6,2235.0,0.8112]
[1750641553881,1.83726,2235.6,2235.0,0.8112]
[1750641554059,1.83726,2235.6,2234.9,0.0591]
[1750641554664,0.057,2235.5,2234.8,2.156489]
[1750641555000,0.057,2235.5,2234.8,0.8112]
[1750641555291,1.83726,2235.6,2234.8,0.8112]
[1750641555292,0.8236,2235.6,2234.9,0.0591]
[1750641555463,0.8236,2235.6,2235.0,0.04474406]
[1750641555666,7.328,2235.5,2235.1,0.7851]
[1750641555988,0.7709,2236.0,2235.2,0.0591]
[1750641556186,2.002,2235.7,2235.2,0.0591]
[1750641556389,2.002,2235.7,2235.3,0.0591]
[1750641556604,2.002,2235.7,2235.1,11.19120179]
[1750641556952,2.002,2235.7,2235.2,0.0591]
[1750641557164,0.7709,2236.0,2235.2,0.0591]
[1750641557368,19.33,2235.9,2235.2,0.0591]
[1750641557577,2.01009,2235.8,2235.2,0.0591]
[1750641557788,2.01009,2235.8,2235.1,0.7851]
[1750641557789,0.057,2235.7,2235.1,0.7851]
[1750641557980,0.8279,2235.6,2235.1,0.7851]
[1750641558195,0.8279,2235.6,2235.1,0.8442]
[1750641558393,0.7709,2235.6,2235.1,0.7851]
[1750641558560,0.8279,2235.6,2235.1,0.7851]
[1750641558892,0.8279,2235.6,2235.1,0.8442]
[1750641559095,2.054699,2235.6,2235.2,0.0591]
[1750641559270,2.111699,2235.6,2234.9,0.8334]
[1750641559789,2.002,2235.5,2235.0,0.0591]
[1750641559988,7.329,2235.4,2235.0,0.0591]
[1750641560192,7.329,2235.4,2235.1,0.0591]
[1750641560580,12.77959,2235.8,2235.1,0.0591]
[1750641560779,9.331,2235.7,2235.2,0.7743]
[1750641560981,2.002,2235.6,2235.3,0.0591]
[1750641561186,2.002,2235.6,2235.2,0.7743]
[1750641561187,2.01009,2235.8,2235.2,0.7743]
[1750641561358,2.002,2235.6,2235.3,0.10383461]
[1750641561704,10.40610179,2237.0,2235.8,0.793]
[1750641561705,2.002,2236.4,2235.8,0.793]
[1750641561859,7.329,2236.5,2236.1,10.40610179]
[1750641562071,7.329,2236.5,2236.3,0.7646]
[1750641562487,7.329,2236.5,2236.4,0.0591]
[1750641563774,7.329,2236.6,2236.4,0.0591]
[1750641564273,10.75,2237.0,2236.4,0.0591]
[1750641564501,9.331,2236.9,2236.3,0.7646]
[1750641565014,10.75,2237.0,2236.4,0.0591]
[1750641565321,4.711,2238.7,2236.4,0.0591]
[1750641565322,2.002,2237.2,2236.7,0.55]
[1750641565479,7.329,2237.4,2236.9,0.0591]
[1750641566009,7.329,2237.4,2237.0,0.0591]
[1750641566217,7.329,2237.4,2236.9,0.0591]
[1750641566375,7.329,2237.4,2236.8,1.65421923]
[1750641566575,7.329,2237.4,2236.9,0.0591]
[1750641567080,2.5,2237.2,2236.8,1.65421923]
[1750641567274,2.5,2237.2,2236.9,0.0591]
[1750641567677,7.329,2237.4,2236.8,1.65421923]
[1750641567877,7.329,2237.4,2236.9,0.0591]
[1750641569512,7.329,2237.4,2236.8,1.65421923]
[1750641569720,7.329,2237.4,2236.9,0.0591]
[1750641569921,7.329,2237.4,2237.0,0.0591]
[1750641570294,7.329,2237.4,2236.8,1.65421923]
[1750641570619,7.329,2237.4,2237.1,0.0591]
[1750641570827,7.329,2237.4,2237.0,0.824]
[1750641571479,7.329,2237.4,2237.0,0.8831]
[1750641572004,0.8,2237.2,2237.0,0.8831]
[1750641574417,0.8,2237.2,2236.7,1.344149]
[1750641574418,0.8,2237.2,2236.7,0.8024]
[1750641574723,0.057,2237.1,2236.4,0.8615]
[1750641574931,2.001,2237.0,2236.4,0.8615]
[1750641575445,2.2868,2237.0,2236.4,0.8615]
[1750641576499,3.0481,2237.0,2236.4,0.8615]
[1750641577600,2.7623,2237.0,2236.4,0.8615]
[1750641579542,1.5738,2237.2,2236.5,0.0591]
[1750641579720,2.001,2237.1,2236.5,0.0591]
[1750641580102,2.001,2237.1,2236.6,0.7945]
[1750641580324,2.001,2237.1,2236.7,0.0591]
[1750641582109,0.8,2237.2,2236.7,10.10380184]
[1750641582435,0.8,2237.2,2237.0,0.0591]
[1750641582830,0.8,2237.2,2236.9,10.7641]
[1750641583141,0.8,2237.2,2237.1,0.0594]
[1750641583515,9.324,2237.8,2237.1,0.0594]
[1750641584539,0.8709,2237.7,2237.0,0.7641]
[1750641584841,1.07729,2237.6,2237.0,0.7641]
[1750641585151,0.0578,2237.5,2236.8,1.3141]
[1750641585448,0.0578,2237.5,2236.8,0.7641]
[1750641585651,9.323,2237.4,2236.8,0.80879968]
[1750641585940,9.323,2237.4,2237.0,0.0594]
[1750641586237,9.3808,2237.4,2236.9,1.08681997]
[1750641586540,9.3808,2237.4,2236.9,1.14621997]
[1750641586742,9.323,2237.4,2237.0,0.0594]
[1750641587049,9.323,2237.5,2236.9,1.13151982]
[1750641587255,9.323,2237.5,2236.9,11.58916142]
[1750641587457,9.323,2237.5,2237.0,11.23532614]
[1750641587859,9.323,2237.5,2237.2,0.8715]
[1750641588256,9.323,2237.5,2237.2,0.8121]
[1750641588450,9.323,2237.5,2237.3,0.0594]
[1750641588832,9.323,2237.5,2237.2,0.8121]
[1750641590062,0.0578,2237.4,2236.9,10.8229]
[1750641590961,10.1009,2237.5,2236.9,10.8229]
[1750641591319,9.321,2237.5,2237.0,0.0594]
[1750641591525,7.323,2237.6,2237.0,0.04469892]
[1750641591724,7.323,2237.6,2237.1,0.7839]
[1750641591925,7.323,2237.6,2237.2,0.0594]
[1750641592156,7.323,2237.6,2237.3,0.0594]
[1750641592543,11.5714,2237.9,2237.3,0.0594]
[1750641592746,7.323,2237.8,2237.4,0.8233]
[1750641592961,7.323,2237.8,2237.5,0.0594]
[1750641593164,20.07,2237.9,2237.4,0.8233]
[1750641593360,12.747,2237.9,2237.4,1.95139416]
[1750641593567,20.07,2237.9,2237.4,1.95139416]
[1750641593947,20.07,2237.9,2237.5,0.0594]
[1750641594533,10.749,2237.9,2237.5,0.0594]
[1750641594734,18.071,2237.9,2237.4,0.8233]
[1750641594949,18.071,2237.9,2237.6,0.0594]
[1750641595153,7.322,2237.9,2237.6,0.0594]
[1750641595870,1.998,2238.0,2237.6,0.782]
[1750641596072,9.32,2238.0,2237.6,0.782]
[1750641596376,0.0578,2238.4,2237.7,0.10408567]
[1750641596573,7.73973741,2238.3,2237.8,0.0594]
[1750641596872,7.322,2238.3,2237.7,0.55]
[1750641597036,7.322,2238.3,2237.8,0.0594]
[1750641597434,0.47552542,2238.2,2237.6,0.782]
[1750641597635,0.0578,2238.0,2237.6,0.782]
[1750641598569,1.57565254,2238.1,2237.6,0.782]
[1750641598771,0.41772151,2238.0,2237.2,0.7766]
[1750641598949,0.7959,2237.8,2237.2,0.7766]
[1750641599155,0.0578,2237.6,2237.0,0.836]
[1750641600203,0.0578,2237.6,2237.0,1.29303135]
[1750641601696,7.64216215,2237.7,2237.0,1.29303135]
[1750641602692,7.64216215,2237.7,2237.0,1.23363135]
[1750641602899,7.64216215,2237.7,2237.0,1.29303135]
[1750641603099,0.84958622,2237.6,2237.0,1.29303135]
[1750641603869,7.321,2237.7,2237.1,0.0594]
[1750641604067,0.8537,2237.8,2237.1,0.0594]
[1750641604268,9.319,2237.7,2237.1,0.0594]
[1750641604704,10.0578,2237.6,2237.0,1.23363135]
[1750641604900,12.07507,2237.6,2237.0,1.23363135]
[1750641605773,12.07507,2237.6,2237.0,1.29303135]
[1750641606088,7.321,2237.5,2237.2,0.839]
[1750641606401,7.321,2237.5,2237.0,0.45703135]
[1750641606402,7.321,2237.5,2237.0,1.23663135]
[1750641606613,0.4180537,2237.4,2236.8,0.7796]
[1750641606906,1.21381354,2237.3,2236.8,0.7796]
[1750641607122,0.0578,2237.2,2236.8,0.7796]
[1750641607426,0.0578,2237.0,2236.6,0.7972]
[1750641607588,7.321,2236.9,2236.4,0.786]
[1750641607922,0.0578,2236.8,2236.4,0.786]
[1750641608423,0.0578,2236.7,2236.0,0.7677]
[1750641609296,0.0578,2236.7,2236.1,0.0594]
[1750641609497,1.998,2236.6,2236.1,0.0594]
[1750641610786,1.998,2236.6,2236.2,0.7758]
[1750641611122,9.319,2236.9,2236.5,0.0594]
[1750641612208,9.316,2237.5,2236.8,10.4576416]
[1750641612394,0.0578,2237.4,2236.7,0.8201]
[1750641612598,0.8895,2237.4,2236.7,0.8201]
[1750641613195,0.8895,2237.4,2236.7,1.27549819]
[1750641613392,2.02201589,2237.4,2236.7,1.27549819]
[1750641615196,2.02511589,2237.4,2236.7,1.27549819]
[1750641615822,2.02511589,2237.4,2236.7,1.33649819]
[1750641616827,2.02511589,2237.4,2236.7,1.38120203]
[1750641617003,0.8926,2237.4,2236.7,1.33649819]
[1750641617743,0.7768,2237.7,2237.0,0.8228]
[1750641618040,9.316,2237.6,2237.1,0.061]
[1750641618733,9.316,2237.6,2237.1,0.50337052]
[1750641618734,9.3769,2237.6,2237.1,0.50337052]
[1750641619036,9.3769,2237.6,2237.0,0.8228]
[1750641619203,9.3769,2237.6,2237.0,1.95694416]
[1750641619403,9.3769,2237.6,2237.0,0.8228]
[1750641622348,0.0609,2237.4,2236.9,0.45463496]
[1750641622536,0.81,2237.5,2236.8,0.7909]
[1750641622743,0.0609,2237.4,2236.8,0.7909]
[1750641623746,0.0609,2237.2,2236.4,0.7909]
[1750641623946,1.995,2237.1,2236.4,0.7909]
[1750641624152,7.32,2237.0,2236.4,0.7909]
[1750641624556,1.995,2237.0,2236.6,0.061]
[1750641624769,2.0559,2237.0,2236.5,1.14619]
[1750641625560,1.995,2237.0,2236.5,1.08519]
[1750641625899,1.995,2237.0,2236.6,0.061]
[1750641627575,1.995,2237.0,2236.7,0.7909]
[1750641627775,1.995,2237.0,2236.7,0.8519]
[1750641629948,1.995,2237.0,2236.7,1.08970176]
[1750641634992,1.995,2237.0,2236.8,0.061]
[1750641635195,1.995,2237.0,2236.7,1.07340606]
[1750641635382,1.995,2237.0,2236.8,0.061]
[1750641638315,1.995,2237.0,2236.7,0.7909]
[1750641638516,0.8771,2237.5,2236.8,0.78151566]
[1750641638694,11.32975254,2238.1,2236.8,0.78151566]
[1750641638695,0.8289,2237.7,2237.1,0.061]
[1750641638891,1.995,2237.6,2237.1,0.04469566]
[1750641639111,1.995,2237.6,2237.3,0.8639]
[1750641639309,1.995,2237.6,2237.4,0.061]
[1750641639835,1.995,2237.6,2237.3,0.8639]
[1750641641185,1.65515254,2238.1,2237.4,0.10569245]
[1750641641490,9.313,2238.0,2237.6,0.8167]
[1750641641703,9.313,2238.0,2237.6,0.8777]
[1750641641906,9.313,2238.0,2237.6,0.8167]
[1750641642103,9.313,2238.0,2237.6,0.8777]
[1750641642310,9.3739,2238.0,2237.6,0.8777]
[1750641642509,2.0559,2238.0,2237.6,0.8777]
[1750641642896,1.995,2238.0,2237.6,0.8777]
[1750641644436,1.995,2238.0,2237.7,0.0564]
[1750641644617,9.312,2238.0,2237.6,0.8167]
[1750641644794,9.312,2238.0,2237.6,3.09790537]
[1750641644990,9.312,2238.0,2237.7,0.0564]
[1750641645605,9.312,2238.0,2237.8,0.0564]
[1750641645923,9.312,2238.0,2237.6,3.05322009]
[1750641646092,9.308,2238.0,2237.6,3.10962009]
[1750641646292,9.308,2238.0,2237.7,0.0564]
[1750641647449,9.308,2238.0,2237.6,3.05322009]
[1750641647741,10.0731,2238.0,2237.3,0.7547]
[1750641647939,0.0586,2237.9,2237.3,0.7547]
[1750641648254,0.0586,2237.7,2236.9,1.34386]
[1750641648479,0.767,2237.6,2236.8,0.8707]
[1750641648635,9.307,2237.5,2236.8,0.8707]
[1750641648834,1.066,2237.4,2236.8,0.8707]
[1750641650442,0.0586,2237.4,2236.8,0.8707]
[1750641651441,9.3656,2237.5,2236.8,0.8707]
[1750641651646,9.3656,2237.5,2236.8,0.91540179]
[1750641652138,9.307,2237.5,2236.8,0.91540179]
[1750641652348,9.307,2237.5,2236.8,0.8707]
[1750641652349,0.0586,2237.4,2236.8,0.8707]
[1750641652560,0.0586,2237.4,2236.8,3.0923287]
[1750641652759,0.0586,2237.4,2236.8,3.04762692]
[1750641653255,0.0586,2237.4,2236.8,3.09232869]
[1750641653951,9.307,2237.5,2236.8,3.04762692]
[1750641654258,9.307,2237.5,2236.8,3.09232863]
[1750641654430,10.32026,2237.5,2236.8,3.04762692]
[1750641654636,10.32026,2237.5,2236.9,0.0564]
[1750641655048,10.37886,2237.5,2236.9,0.0564]
[1750641656472,0.0586,2237.4,2236.8,0.8143]
[1750641656682,0.0586,2237.2,2236.6,1.2385276]
[1750641656823,0.0586,2237.2,2236.7,10.0]
[1750641657265,0.7647,2237.3,2236.7,10.0]
[1750641657564,0.0586,2237.2,2236.7,1.344222]
[1750641657922,0.0586,2237.2,2236.4,0.7976]
[1750641658262,0.7647,2236.9,2236.3,0.4367461]
[1750641658438,0.0586,2236.7,2236.3,1.95057961]
[1750641658639,0.0586,2236.7,2236.3,2.40473647]
[1750641658962,9.3646,2236.8,2236.3,2.46113647]
[1750641659828,9.3646,2236.8,2236.3,2.40473647]
[1750641660027,9.3646,2236.8,2236.4,0.0564]
[1750641660235,9.306,2236.8,2236.4,11.32587365]
[1750641660432,1.991,2236.8,2236.5,0.0564]
[1750641660657,0.8233,2237.1,2236.4,11.32587365]
[1750641660658,1.991,2237.0,2236.7,0.0564]
[1750641661061,1.991,2237.0,2236.6,0.7976]
[1750641661247,2.0496,2237.0,2236.6,0.7976]
[1750641661442,1.991,2237.0,2236.6,2.01558736]
[1750641661731,2.0496,2237.0,2236.6,2.01558736]
[1750641662391,0.0586,2237.3,2236.7,0.0564]
[1750641662573,1.991,2237.1,2236.7,0.0564]
[1750641662775,1.991,2237.1,2236.6,1.21798736]
[1750641662977,1.991,2237.1,2236.7,0.0564]
[1750641663368,1.991,2237.1,2236.8,0.0564]
[1750641663692,0.0586,2237.0,2236.6,1.21798736]
[1750641664003,0.0586,2237.0,2236.7,1.20208874]
[1750641664497,0.0586,2237.0,2236.6,1.21798736]
[1750641665506,0.0586,2237.0,2236.6,1.27438736]
[1750641666096,2.0496,2237.1,2236.6,1.27438736]
[1750641666466,0.0586,2237.0,2236.6,1.21798736]
[1750641667181,1.991,2237.1,2236.6,1.21798736]
[1750641667386,1.991,2237.1,2236.7,1.20208874]
[1750641667590,0.8796,2237.5,2236.9,0.8593]
[1750641667795,1.991,2237.4,2236.9,0.8593]
[1750641668108,1.991,2237.4,2237.0,0.0564]
[1750641668414,2.0496,2237.4,2236.9,0.8029]
[1750641668718,2.0496,2237.4,2237.0,1.344077]
[1750641669589,1.991,2237.4,2237.0,1.400477]
[1750641669794,1.991,2237.4,2237.1,0.0564]
[1750641673295,11.19703356,2238.2,2237.1,0.0564]
[1750641673296,0.8494,2237.9,2237.2,0.7576]
[1750641673501,1.985,2237.8,2237.4,0.0616]
[1750641673897,1.985,2237.8,2237.4,0.7576]
[1750641674126,0.0615,2237.5,2237.2,0.7576]
[1750641674327,0.0615,2237.5,2237.0,19.2928872]
[1750641675134,0.0615,2237.5,2237.0,12.101677]
[1750641675437,0.7879,2237.6,2237.0,12.101677]
[1750641675602,0.0615,2237.5,2237.0,12.101677]
[1750641675797,1.06519,2237.6,2237.0,10.7576]
[1750641676201,0.0615,2237.5,2237.0,10.7576]
[1750641677334,0.7879,2237.6,2237.0,17.9488102]
[1750641677556,0.8494,2237.6,2237.1,2.46789652]
[1750641677716,0.0615,2237.5,2237.0,17.8872102]
[1750641678249,0.0615,2237.5,2237.0,17.9488102]
[1750641679848,0.0615,2237.5,2237.0,17.8872102]
[1750641680050,0.0615,2237.5,2237.0,10.7576]
[1750641680646,0.0615,2237.5,2237.0,10.8192]
[1750641681168,0.0615,2237.5,2237.0,10.0]
[1750641681345,0.0615,2237.5,2236.9,1.344155]
[1750641681346,0.7506,2237.4,2236.8,0.7692]
[1750641681549,0.0615,2237.2,2236.8,0.7692]
[1750641682254,0.0615,2237.2,2236.8,2.113403]
[1750641683040,9.296,2237.3,2236.8,2.175003]
[1750641683260,10.30066,2237.3,2236.8,2.113403]
[1750641683577,10.30066,2237.3,2236.3,7.75915686]
[1750641683578,0.0615,2237.2,2236.6,0.768]
[1750641683776,10.30066,2237.3,2236.7,1.344281]
[1750641683971,0.0615,2237.2,2236.7,1.344281]
[1750641684274,0.8098,2237.0,2236.4,0.8599]
[1750641684460,0.0615,2236.9,2236.4,2.142581]
[1750641684659,1.985,2236.8,2236.4,0.8599]
[1750641684977,1.985,2236.7,2236.6,7.1912102]
[1750641685163,0.8224,2237.2,2236.6,7.1296102]
[1750641685482,1.985,2236.9,2236.6,7.1296102]
[1750641685644,1.985,2236.9,2236.5,10.0]
[1750641685985,1.985,2236.9,2236.6,0.0616]
[1750641686173,1.985,2236.9,2236.5,10.0616]
[1750641686787,1.985,2236.9,2236.4,0.7983]
[1750641686942,1.7582,2236.8,2236.2,10.821]
[1750641687142,0.8286,2236.8,2236.2,10.8826]
[1750641687457,0.8286,2236.8,2236.3,1.406105]
[1750641688447,0.8286,2236.8,2236.3,1.344505]
[1750641688649,0.7671,2236.8,2236.4,0.0616]
[1750641689150,1.985,2236.8,2236.4,0.04471246]
[1750641689349,1.985,2236.8,2236.5,0.0616]
[1750641689674,1.985,2236.8,2236.4,2.31136817]
[1750641689873,1.985,2236.8,2236.5,0.0616]
[1750641690076,0.8107,2237.1,2236.5,0.0616]
[1750641690274,9.3575,2237.0,2236.3,1.78387403]
[1750641690481,9.3575,2237.0,2236.4,1.63621588]
[1750641690678,9.3575,2237.0,2236.4,0.0616]
[1750641690850,9.296,2237.0,2236.4,0.0616]
[1750641691383,0.8107,2237.1,2236.4,0.0616]
[1750641691681,9.296,2237.0,2236.6,0.0616]
[1750641692057,9.296,2237.0,2236.5,0.7882]
[1750641692257,9.296,2237.0,2236.5,1.04987827]
[1750641692665,1.986,2237.3,2236.8,10.46409525]
[1750641692863,1.986,2237.3,2236.9,0.04470017]
[1750641693185,0.8637,2237.2,2236.6,5.5845]
[1750641693486,0.8637,2237.2,2236.6,7.15334948]
[1750641693781,0.8022,2237.2,2236.6,5.5229]
[1750641693991,0.47874673,2237.1,2236.6,4.77]
[1750641694154,0.7872,2236.8,2236.6,4.77]
[1750641694349,1.986,2236.7,2236.4,0.8331]
[1750641695095,1.986,2236.7,2236.4,0.8947]
[1750641696088,1.986,2236.7,2236.3,1.84547403]
[1750641696493,1.986,2236.7,2236.3,1.78387403]
[1750641696702,1.986,2236.7,2236.4,0.0616]
[1750641697461,1.986,2236.7,2236.3,4.09198096]
[1750641697666,1.986,2236.7,2236.4,0.0616]
[1750641697983,1.986,2236.7,2236.3,4.09198096]
[1750641698170,1.986,2236.7,2236.4,0.0616]
[1750641698372,1.986,2236.7,2236.5,0.0616]
[1750641698897,1.986,2236.8,2236.4,1.54337733]
[1750641699099,1.986,2236.8,2236.5,0.0616]
[1750641699595,1.986,2236.8,2236.4,1.4986681]
[1750641700309,1.986,2236.8,2236.5,0.0616]
[1750641700606,1.986,2236.8,2236.5,0.56522491]
[1750641700782,1.986,2236.8,2236.6,0.0616]
[1750641702217,0.8075,2237.2,2236.6,0.7657]
[1750641702374,9.296,2237.1,2236.6,0.7657]
[1750641702581,9.296,2237.1,2236.7,0.0616]
[1750641702782,0.8075,2237.2,2236.7,0.0616]
[1750641703100,0.8075,2237.2,2236.6,0.7657]
[1750641703101,1.986,2237.1,2236.6,0.7657]
[1750641703302,1.986,2237.1,2236.7,0.0624]
[1750641703504,1.986,2237.1,2236.5,0.56522491]
[1750641703505,0.7741,2237.1,2236.5,0.0624]
[1750641703705,0.0563,2236.9,2236.4,0.8009]
[1750641703885,0.0563,2236.9,2236.4,0.8633]
[1750641704915,0.7741,2237.1,2236.5,0.0624]
[1750641705123,1.981,2237.0,2236.9,0.0624]
[1750641705817,1.981,2237.3,2236.9,0.0624]
[1750641706125,1.981,2237.3,2237.0,0.0624]
[1750641706740,1.981,2237.3,2237.0,0.8848]
[1750641706890,1.981,2237.3,2237.1,0.0624]
[1750641708738,1.981,2237.3,2237.2,0.0624]
[1750641710800,18.053,2237.5,2237.1,0.8149]
[1750641710801,18.053,2237.5,2237.1,0.85959588]
[1750641711001,18.053,2237.5,2237.2,1.21460911]
[1750641711200,18.053,2237.5,2237.3,0.0624]
[1750641711629,1.98,2237.6,2237.3,0.0624]
[1750641711841,7.308,2237.5,2237.2,1.21460911]
[1750641712039,7.308,2237.7,2237.4,0.8149]
[1750641712347,1.98,2237.8,2237.5,0.04469001]
[1750641712551,7.308,2237.7,2237.2,1.27700911]
[1750641712752,7.308,2237.7,2237.3,2.45383898]
[1750641712968,0.0563,2237.6,2237.3,2.45383898]
[1750641714746,0.8231,2238.2,2237.4,15.5849]
[1750641715051,0.8231,2238.2,2237.6,0.8149]
[1750641715052,9.287,2238.1,2237.6,0.8149]
[1750641715363,1.98,2238.1,2237.8,0.0624]
[1750641715742,7.307,2238.0,2237.8,0.0624]
[1750641716131,1.98,2238.1,2237.7,0.0624]
[1750641716337,9.287,2238.1,2237.9,1.343523]
[1750641716725,9.287,2238.1,2237.9,1.405923]
[1750641716928,1.98,2238.1,2237.9,1.405923]
[1750641717126,9.287,2238.1,2237.9,1.405923]
[1750641718155,1.98,2238.1,2237.9,0.0624]
[1750641718330,7.306,2238.0,2237.9,0.0624]
[1750641720363,7.306,2238.0,2237.8,0.51582033]
[1750641720521,7.306,2238.0,2237.8,0.96267333]
[1750641721073,7.306,2238.0,2237.8,1.41147904]
[1750641721432,7.306,2238.0,2237.9,0.0624]
[1750641721844,0.8231,2238.4,2237.9,0.0624]
[1750641722032,0.45001387,2239.1,2238.1,0.0624]
[1750641722033,7.305,2238.5,2238.1,0.0624]
[1750641722252,7.305,2238.5,2238.2,0.0624]
[1750641722942,2.0363,2238.7,2238.2,0.0624]
[1750641722943,1.98,2238.7,2238.3,5.5832]
[1750641723257,1.98,2238.9,2238.5,0.0624]
[1750641723575,7.304,2238.8,2238.5,0.0624]
[1750641724134,7.304,2238.8,2238.4,0.55]
[1750641724438,7.304,2238.8,2238.3,0.7508]
[1750641724762,7.304,2238.8,2238.4,0.0624]
[1750641725123,7.304,2238.8,2238.5,0.0624]
[1750641727283,1.98,2238.9,2238.4,1.12681304]
[1750641727482,7.303,2238.8,2238.4,1.12681304]
[1750641727689,1.98,2238.9,2238.6,0.8584]
[1750641727837,10.742,2239.1,2238.7,0.10706325]
[1750641728165,7.302,2238.9,2238.6,0.796]